bitfinex/quotes_BTCUSD_20250809
["timestamp","ask_amount","ask_price","bid_price","bid_amount"]
[1754768003329,0.82258799,116680.0,116670.0,0.207]
[1754768003532,0.81658799,116680.0,116670.0,0.206]
[1754768004132,0.82658799,116680.0,116670.0,0.207]
[1754768005779,0.85175151,116680.0,116670.0,0.207]
[1754768019202,0.84675151,116680.0,116670.0,0.202]
[1754768079261,0.84675151,116680.0,116670.0,0.20412]
[1754768083347,0.84351151,116680.0,116670.0,0.20412]
[1754768084788,0.84665151,116680.0,116670.0,0.20412]
[1754768092367,0.84110151,116680.0,116670.0,0.2072]
[1754768102762,0.84313151,116680.0,116670.0,0.2072]
[1754768104880,0.85174779,116680.0,116670.0,0.2072]
[1754768105275,0.85174779,116680.0,116670.0,0.20412]
[1754768109339,0.85486779,116680.0,116670.0,0.20412]
[1754768112254,0.85486779,116680.0,116670.0,0.202]
[1754768126784,0.85486779,116680.0,116670.0,0.20414]
[1754768132856,0.85486779,116680.0,116670.0,0.202]
[1754768149519,0.85486779,116680.0,116670.0,0.2015183]
[1754768158693,0.85486779,116680.0,116670.0,0.2035683]
[1754768165578,0.85486779,116680.0,116670.0,0.2015183]
[1754768173419,0.9339503,116680.0,116670.0,0.2015183]
[1754768173802,0.88616748,116680.0,116670.0,0.2015183]
[1754768175269,0.85486779,116680.0,116670.0,0.2015183]
[1754768188352,0.86290466,116680.0,116670.0,0.2015183]
[1754768189412,0.86290452,116680.0,116670.0,0.2015183]
[1754768189619,0.17143836,116660.0,116650.0,0.00304]
[1754768189870,0.51145306,116650.0,116640.0,0.09099]
[1754768190061,0.72911517,116650.0,116640.0,0.09309]
[1754768190307,0.75486517,116650.0,116640.0,0.09309]
[1754768191168,0.75586517,116650.0,116640.0,0.09309]
[1754768192219,0.75786517,116650.0,116640.0,0.09409]
[1754768192544,0.84465942,116650.0,116640.0,0.09409]
[1754768209428,0.62706517,116650.0,116640.0,0.26555776]
[1754768209643,0.45561211,116650.0,116640.0,0.39659776]
[1754768210262,0.42986211,116650.0,116640.0,0.39659776]
[1754768210522,0.08986211,116650.0,116640.0,0.39659776]
[1754768211182,0.003,116650.0,116640.0,0.42153776]
[1754768212102,0.34,116660.0,116650.0,0.17145306]
[1754768212312,0.48473674,116660.0,116650.0,0.17350306]
[1754768212545,0.48473674,116660.0,116650.0,0.17665306]
[1754768213396,0.48573674,116660.0,116650.0,0.17965306]
[1754768214214,0.48673674,116660.0,116650.0,0.18665306]
[1754768223757,0.6581751,116660.0,116650.0,0.18665306]
[1754768227222,0.6602651,116660.0,116650.0,0.18665306]
[1754768227463,0.6602651,116660.0,116650.0,0.18350306]
[1754768228564,0.6602651,116660.0,116650.0,0.01]
[1754768228565,0.68085412,116660.0,116650.0,0.01]
[1754768232517,0.70659912,116660.0,116650.0,0.01]
[1754768234028,0.83839912,116660.0,116650.0,0.01]
[1754768236618,0.83839912,116660.0,116650.0,0.18145306]
[1754768237045,0.81265412,116660.0,116650.0,0.18145306]
[1754768237494,0.83839912,116660.0,116650.0,0.18145306]
[1754768237929,0.81265412,116660.0,116650.0,0.18145306]
[1754768238154,0.83839912,116660.0,116650.0,0.18145306]
[1754768238369,0.75477949,116660.0,116650.0,0.18145306]
[1754768242937,0.75477949,116660.0,116650.0,0.31357306]
[1754768246823,0.73733047,116660.0,116650.0,0.31357306]
[1754768255381,0.56589211,116660.0,116650.0,0.31357306]
[1754768258222,0.56589211,116660.0,116650.0,0.31573306]
[1754768258535,0.64305667,116660.0,116650.0,0.31573306]
[1754768267165,0.63991667,116660.0,116650.0,0.31573306]
[1754768267364,0.81135503,116660.0,116650.0,0.31872306]
[1754768267770,0.81135503,116660.0,116650.0,0.31573306]
[1754768268263,0.81434503,116660.0,116650.0,0.31573306]
[1754768268822,0.64290667,116660.0,116650.0,0.31573306]
[1754768271415,0.63782667,116660.0,116650.0,0.31872306]
[1754768271829,0.50602667,116660.0,116650.0,0.31872306]
[1754768286834,0.42886211,116660.0,116650.0,0.31872306]
[1754768287058,0.002,116660.0,116650.0,0.31872306]
[1754768308927,0.00721,116660.0,116650.0,0.31573306]
[1754768310199,0.00412,116660.0,116650.0,0.31573306]
[1754768310622,0.00721,116660.0,116650.0,0.31357306]
[1754768311662,0.00721,116660.0,116650.0,0.31558306]
[1754768312493,0.17864836,116660.0,116650.0,0.31357306]
[1754768312655,0.33451772,116660.0,116650.0,0.14224]
[1754768312858,0.67451772,116660.0,116650.0,0.14224]
[1754768313327,0.67451772,116660.0,116650.0,0.01]
[1754768314684,0.80679772,116660.0,116650.0,0.01]
[1754768321162,0.82424674,116660.0,116650.0,0.01]
[1754768323463,0.84999274,116660.0,116650.0,0.01]
[1754768325399,0.71771274,116660.0,116650.0,0.01]
[1754768339464,0.71250274,116660.0,116650.0,0.01534]
[1754768340062,0.71447274,116660.0,116650.0,0.01534]
[1754768340264,0.71447274,116660.0,116650.0,0.01212]
[1754768341273,0.71750274,116660.0,116650.0,0.01212]
[1754768343841,0.71250274,116660.0,116650.0,0.01534]
[1754768344699,0.71447274,116660.0,116650.0,0.01534]
[1754768344892,0.71447274,116660.0,116650.0,0.01212]
[1754768345349,0.71750274,116660.0,116650.0,0.01212]
[1754768353284,0.71750274,116660.0,116650.0,0.01]
[1754768358164,0.71750274,116660.0,116650.0,0.01195]
[1754768360675,0.70005372,116660.0,116650.0,0.18340306]
[1754768360876,0.67430772,116660.0,116650.0,0.01195]
[1754768361473,0.67430772,116660.0,116650.0,0.18340306]
[1754768361918,0.60030047,116660.0,116650.0,0.18660306]
[1754768363614,0.60235047,116660.0,116650.0,0.18660306]
[1754768368443,0.60235047,116660.0,116650.0,0.18340306]
[1754768369265,0.60235047,116660.0,116650.0,0.01195]
[1754768371989,0.60535047,116660.0,116650.0,0.01195]
[1754768372191,0.65307929,116660.0,116650.0,0.01195]
[1754768373692,0.65307929,116660.0,116650.0,0.01]
[1754768373895,0.78511929,116660.0,116650.0,0.01]
[1754768381515,0.80256831,116660.0,116650.0,0.01]
[1754768382579,0.80156831,116660.0,116650.0,0.007]
[1754768383010,0.80256831,116660.0,116650.0,0.008]
[1754768383487,0.80256831,116660.0,116650.0,0.007]
[1754768383488,0.80156831,116660.0,116650.0,0.007]
[1754768383721,0.52890208,116650.0,116640.0,0.0879]
[1754768383934,0.83700844,116650.0,116640.0,0.0879]
[1754768384172,0.84000844,116650.0,116640.0,0.0879]
[1754768385244,0.84100844,116650.0,116640.0,0.0949]
[1754768386091,0.84100844,116650.0,116640.0,0.0979]
[1754768386301,0.84200844,116650.0,116640.0,0.0979]
[1754768388600,0.70960844,116650.0,116640.0,0.0979]
[1754768390647,0.84192844,116650.0,116640.0,0.0979]
[1754768396514,0.70960844,116650.0,116640.0,0.0979]
[1754768398672,0.84184844,116650.0,116640.0,0.0979]
[1754768404523,0.70960844,116650.0,116640.0,0.0979]
[1754768412666,0.84164844,116650.0,116640.0,0.0979]
[1754768414548,0.70960844,116650.0,116640.0,0.0979]
[1754768421578,0.70960844,116650.0,116640.0,0.2297]
[1754768428331,0.73535744,116650.0,116640.0,0.2297]
[1754768433314,0.73535744,116650.0,116640.0,0.0979]
[1754768433523,0.73535744,116650.0,116640.0,0.22962]
[1754768442559,0.73535744,116650.0,116640.0,0.22946]
[1754768446184,0.73535744,116650.0,116640.0,0.23156]
[1754768450534,0.73235744,116650.0,116640.0,0.23465]
[1754768451630,0.71285842,116650.0,116640.0,0.40611776]
[1754768452482,0.68710942,116650.0,116640.0,0.40611776]
[1754768454360,0.42886211,116650.0,116640.0,0.40611776]
[1754768458489,0.60031517,116650.0,116640.0,0.40611776]
[1754768460969,0.43093211,116650.0,116640.0,0.40611776]
[1754768461139,0.42886211,116650.0,116640.0,0.40611776]
[1754768467085,0.60031517,116650.0,116640.0,0.40611776]
[1754768467292,0.68710942,116650.0,116640.0,0.40611776]
[1754768475674,0.68917942,116650.0,116640.0,0.40611776]
[1754768477853,0.68917942,116650.0,116640.0,0.40302776]
[1754768480952,0.69212942,116650.0,116640.0,0.40302776]
[1754768481163,0.69212942,116650.0,116640.0,0.1]
[1754768481367,0.69212942,116650.0,116640.0,0.22918]
[1754768486742,0.69212942,116650.0,116640.0,0.0979]
[1754768486978,0.82352942,116650.0,116640.0,0.2293]
[1754768488734,0.69212942,116650.0,116640.0,0.2293]
[1754768488939,0.69212942,116650.0,116640.0,0.40076776]
[1754768489519,0.52067636,116650.0,116640.0,0.40076776]
[1754768490875,0.69212942,116650.0,116640.0,0.40076776]
[1754768491422,0.52067636,116650.0,116640.0,0.40076776]
[1754768495337,0.51565636,116650.0,116640.0,0.40577776]
[1754768495772,0.42886211,116650.0,116640.0,0.40577776]
[1754768504999,0.43099211,116650.0,116640.0,0.40577776]
[1754768505858,0.43099211,116650.0,116640.0,0.40275776]
[1754768510504,0.42886211,116650.0,116640.0,0.40579776]
[1754768521927,0.002,116650.0,116640.0,0.77626903]
[1754768522163,0.002,116650.0,116640.0,0.80201103]
[1754768522421,0.002,116650.0,116640.0,1.06791103]
[1754768522885,0.001,116650.0,116640.0,0.69443976]
[1754768523119,0.001,116650.0,116640.0,1.06491103]
[1754768523369,0.001,116650.0,116640.0,0.69443976]
[1754768523587,0.001,116650.0,116640.0,1.05791103]
[1754768523810,0.34,116670.0,116660.0,0.17143836]
[1754768524051,0.42898211,116670.0,116660.0,0.30460836]
[1754768525225,0.43098211,116670.0,116660.0,0.31360836]
[1754768525709,0.49908381,116670.0,116660.0,0.31360836]
[1754768527442,0.49908381,116670.0,116660.0,0.31163836]
[1754768529497,0.43409211,116670.0,116660.0,0.31163836]
[1754768534389,0.43409211,116670.0,116660.0,0.38111598]
[1754768534604,0.43409211,116670.0,116660.0,0.31163836]
[1754768534836,0.43409211,116670.0,116660.0,0.31360836]
[1754768535074,0.43098211,116670.0,116660.0,0.31664836]
[1754768535284,0.42886211,116670.0,116660.0,0.31664836]
[1754768535542,0.342,116670.0,116660.0,0.68711963]
[1754768535767,0.002,116670.0,116660.0,0.38612598]
[1754768536227,0.002,116670.0,116660.0,0.31664836]
[1754768539538,0.002,116670.0,116660.0,0.38612598]
[1754768539743,0.002,116670.0,116660.0,0.31664836]
[1754768544778,0.002,116670.0,116660.0,0.34238836]
[1754768554869,0.00399,116670.0,116660.0,0.34238836]
[1754768558611,0.00712,116670.0,116660.0,0.16594]
[1754768558821,0.26540578,116670.0,116660.0,0.009]
[1754768559037,0.35220003,116670.0,116660.0,0.009]
[1754768566403,0.36964905,116670.0,116660.0,0.009]
[1754768566624,0.70964905,116670.0,116660.0,0.009]
[1754768567567,0.70864905,116670.0,116660.0,0.005]
[1754768567779,0.70964905,116670.0,116660.0,0.003]
[1754768567987,0.70864905,116670.0,116660.0,0.003]
[1754768568202,0.70864905,116670.0,116660.0,0.007]
[1754768578290,0.73439605,116670.0,116660.0,0.007]
[1754768591247,0.87519605,116670.0,116660.0,0.007]
[1754768599125,0.6424818,116670.0,116660.0,0.01223]
[1754768599351,0.6167348,116670.0,116660.0,0.01223]
[1754768600278,0.6219448,116670.0,116660.0,0.00916]
[1754768606262,0.7635848,116670.0,116660.0,0.00916]
[1754768616298,0.7604048,116670.0,116660.0,0.00916]
[1754768616513,0.84719905,116670.0,116660.0,0.01223]
[1754768618034,0.84719905,116670.0,116660.0,0.00916]
[1754768619983,0.85037905,116670.0,116660.0,0.00916]
[1754768621504,0.85037905,116670.0,116660.0,0.007]
[1754768678946,0.87612305,116670.0,116660.0,0.007]
[1754768680823,0.87512305,116670.0,116660.0,0.004]
[1754768681269,0.87812305,116670.0,116660.0,0.005]
[1754768681519,0.87812305,116670.0,116660.0,0.001]
[1754768681764,0.88212305,116670.0,116660.0,0.001]
[1754768687820,0.88212305,116670.0,116660.0,0.00297]
[1754768688867,0.87251305,116670.0,116660.0,0.00616]
[1754768694750,0.87452305,116670.0,116660.0,0.00616]
[1754768696061,0.87452305,116670.0,116660.0,0.00297]
[1754768702511,0.87761305,116670.0,116660.0,0.00297]
[1754768710590,0.7908188,116670.0,116660.0,0.00297]
[1754768714515,0.7908188,116670.0,116660.0,0.001]
[1754768722416,0.26528578,116670.0,116660.0,0.00612]
[1754768722866,0.74164578,116670.0,116660.0,0.00612]
[1754768723529,0.73464578,116670.0,116660.0,0.00512]
[1754768723743,0.82244003,116670.0,116660.0,0.00812]
[1754768723954,0.82244003,116670.0,116660.0,0.01212]
[1754768724167,0.82248003,116670.0,116660.0,0.01212]
[1754768724386,0.68608003,116670.0,116660.0,0.01212]
[1754768724609,0.59928578,116670.0,116660.0,0.08159762]
[1754768725036,0.59928578,116670.0,116660.0,0.01212]
[1754768726363,0.73576578,116670.0,116660.0,0.01212]
[1754768726986,0.59928578,116670.0,116660.0,0.08159762]
[1754768727431,0.59928578,116670.0,116660.0,0.01212]
[1754768728486,0.42786211,116670.0,116660.0,0.18355836]
[1754768728691,0.59928578,116670.0,116660.0,0.03786]
[1754768728922,0.59928578,116670.0,116660.0,0.04000297]
[1754768729356,0.42786211,116670.0,116660.0,0.21144133]
[1754768729575,0.67305689,116670.0,116660.0,0.03786]
[1754768729800,0.67305689,116670.0,116660.0,0.04000297]
[1754768730439,0.59928578,116670.0,116660.0,0.04000297]
[1754768730678,0.341,116670.0,116660.0,0.5561726]
[1754768730905,0.001,116670.0,116660.0,0.20929736]
[1754768733245,0.001,116670.0,116660.0,0.34945736]
[1754768740285,0.001,116670.0,116660.0,0.35812959]
[1754768742774,0.001,116670.0,116660.0,0.34945736]
[1754768744197,0.001,116670.0,116660.0,0.3579019]
[1754768744598,0.001,116670.0,116660.0,0.34945736]
[1754768746648,0.001,116670.0,116660.0,0.35813389]
[1754768751246,0.001,116670.0,116660.0,0.34945736]
[1754768753513,0.001,116670.0,116660.0,0.71992863]
[1754768753729,0.001,116670.0,116660.0,1.0903999]
[1754768753935,0.001,116670.0,116660.0,0.82794086]
[1754768754534,0.51139456,116690.0,116680.0,0.17140898]
[1754768754770,0.51139456,116690.0,116680.0,0.31543159]
[1754768754982,0.51139456,116690.0,116680.0,0.31622898]
[1754768755842,0.51239456,116690.0,116680.0,0.34596398]
[1754768756728,0.001,116690.0,116680.0,0.71643525]
[1754768757141,0.001,116690.0,116680.0,0.71743525]
[1754768757853,0.51994882,116700.0,116690.0,0.17139429]
[1754768758057,0.51999613,116700.0,116690.0,0.17549671]
[1754768758271,0.51999613,116700.0,116690.0,0.17629429]
[1754768758480,0.5838883,116700.0,116690.0,0.20202629]
[1754768758909,0.5838883,116700.0,116690.0,0.030632]
[1754768759129,0.51999613,116700.0,116690.0,0.03277442]
[1754768759853,0.52201613,116700.0,116690.0,0.030632]
[1754768760938,0.52501613,116700.0,116690.0,0.027692]
[1754768761377,0.52501613,116700.0,116690.0,0.028692]
[1754768763327,0.61187824,116700.0,116690.0,0.026732]
[1754768763558,0.71343755,116700.0,116690.0,0.001]
[1754768763801,0.89338657,116700.0,116690.0,0.001]
[1754768764032,0.86590198,116700.0,116690.0,0.001]
[1754768764506,0.17140898,116680.0,116670.0,0.13952]
[1754768764717,0.17342898,116680.0,116670.0,0.13952]
[1754768764930,0.17667898,116680.0,116670.0,0.13952]
[1754768767355,0.17667898,116680.0,116670.0,0.14152]
[1754768767583,0.17667898,116680.0,116670.0,0.14352]
[1754768767927,0.21148756,116680.0,116670.0,0.14352]
[1754768774825,0.22010677,116680.0,116670.0,0.14352]
[1754768776627,0.17667898,116680.0,116670.0,0.14352]
[1754768779808,0.18518306,116680.0,116670.0,0.14352]
[1754768780461,0.27204517,116680.0,116670.0,0.14352]
[1754768780700,0.61204517,116680.0,116670.0,0.004]
[1754768780921,0.75088517,116680.0,116670.0,0.004]
[1754768781110,0.83767942,116680.0,116670.0,0.004]
[1754768781596,0.83767942,116680.0,116670.0,0.002]
[1754768781805,0.51142367,116670.0,116660.0,0.1388]
[1754768782032,0.60030578,116670.0,116660.0,0.1388]
[1754768782268,0.60349578,116670.0,116660.0,0.1388]
[1754768782478,0.69029003,116670.0,116660.0,0.1388]
[1754768783540,0.69029003,116670.0,116660.0,0.1398]
[1754768789091,0.69029003,116670.0,116660.0,0.001]
[1754768789266,0.69029003,116670.0,116660.0,0.1394]
[1754768790953,0.69029003,116670.0,116660.0,0.001]
[1754768796403,0.70773905,116670.0,116660.0,0.001]
[1754768798488,0.70773905,116670.0,116640.0,0.29852762]
[1754768798489,0.17145306,116650.0,116640.0,0.29852762]
[1754768798732,0.17145306,116650.0,116640.0,0.30064762]
[1754768799700,0.17145306,116650.0,116640.0,0.30312052]
[1754768800283,0.17145306,116650.0,116640.0,0.30412052]
[1754768805261,0.17145306,116650.0,116640.0,0.2346429]
[1754768805936,0.18705536,116650.0,116640.0,0.2346429]
[1754768806161,0.18705536,116650.0,116640.0,0.2316129]
[1754768807782,0.17654306,116650.0,116640.0,0.2316129]
[1754768808443,0.17347306,116650.0,116640.0,0.2316129]
[1754768809302,0.17145306,116650.0,116640.0,0.2346029]
[1754768815945,0.17349306,116650.0,116640.0,0.2346029]
[1754768816967,0.17349306,116650.0,116640.0,0.1780969]
[1754768817401,0.17349306,116650.0,116640.0,0.1751069]
[1754768819334,0.17656306,116650.0,116640.0,0.1751069]
[1754768820170,0.22005066,116650.0,116640.0,0.1751069]
[1754768822764,0.22845096,116650.0,116640.0,0.1751069]
[1754768824473,0.22005066,116650.0,116640.0,0.1751069]
[1754768824612,0.21698066,116650.0,116640.0,0.1780969]
[1754768824822,0.17349306,116650.0,116640.0,0.1780969]
[1754768825291,0.17145306,116650.0,116640.0,0.1780969]
[1754768826510,0.17349306,116650.0,116640.0,0.0348669]
[1754768826696,0.17656306,116650.0,116640.0,0.1723069]
[1754768829550,0.17656306,116650.0,116640.0,0.0348669]
[1754768829755,0.22091157,116650.0,116640.0,0.1721469]
[1754768829954,0.64777368,116650.0,116640.0,0.0348669]
[1754768830228,0.64777368,116650.0,116640.0,0.1720669]
[1754768832091,0.78493368,116650.0,116640.0,0.0348669]
[1754768843772,0.60342517,116650.0,116640.0,0.0348669]
[1754768846728,0.60342517,116650.0,116640.0,0.10434452]
[1754768850475,0.60342517,116650.0,116640.0,0.0348669]
[1754768850680,0.60342517,116650.0,116640.0,0.0368669]
[1754768851292,0.60342517,116650.0,116640.0,0.0348669]
[1754768851544,0.68434838,116650.0,116640.0,0.0348669]
[1754768852641,0.68434838,116650.0,116640.0,0.0368669]
[1754768855036,0.82158838,116650.0,116640.0,0.0368669]
[1754768858965,0.68434838,116650.0,116640.0,0.0368669]
[1754768860846,0.68127838,116650.0,116640.0,0.0368669]
[1754768861062,0.82132838,116650.0,116640.0,0.0368669]
[1754768863499,0.68432838,116650.0,116640.0,0.0368669]
[1754768865209,0.68432838,116650.0,116640.0,0.0348669]
[1754768865415,0.82104838,116650.0,116640.0,0.0348669]
[1754768896242,0.8384974,116650.0,116640.0,0.0348669]
[1754768898496,0.8384974,116650.0,116640.0,0.0328669]
[1754768898755,0.8384974,116650.0,116640.0,0.0318669]
[1754768898914,0.8384974,116650.0,116640.0,0.0328669]
[1754768900203,0.8384974,116650.0,116640.0,0.03262909]
[1754768908470,0.8642464,116650.0,116640.0,0.03262909]
[1754768917848,0.7275264,116650.0,116640.0,0.03262909]
[1754768918053,0.8636864,116650.0,116640.0,0.03262909]
[1754768923776,0.8379374,116650.0,116640.0,0.03262909]
[1754768929296,0.8636864,116650.0,116640.0,0.03262909]
[1754768940651,0.8636864,116650.0,116640.0,1e-08]
[1754768941310,0.52891678,116640.0,116630.0,0.07497479]
[1754768941548,0.84379314,116640.0,116630.0,0.07497479]
[1754768941986,0.86954414,116640.0,116630.0,0.07497479]
[1754768942632,0.87054414,116640.0,116630.0,0.07497479]
[1754768943296,0.87254414,116640.0,116630.0,0.07497479]
[1754768943741,0.86947414,116640.0,116630.0,0.07701479]
[1754768943990,0.87254414,116640.0,116630.0,0.07701479]
[1754768944820,0.87254414,116640.0,116630.0,0.07497479]
[1754768948965,0.84679314,116640.0,116630.0,0.07497479]
[1754768949382,0.84679314,116640.0,116630.0,0.07701479]
[1754768950032,0.84372314,116640.0,116630.0,0.07701479]
[1754768950459,0.84372314,116640.0,116630.0,0.08017479]
[1754768952230,0.84169314,116640.0,116630.0,0.08017479]
[1754768955731,0.84372314,116640.0,116630.0,0.07701479]
[1754768956842,0.71067314,116640.0,116630.0,0.07701479]
[1754768957073,0.70760314,116640.0,116630.0,0.07701479]
[1754768958906,0.84368314,116640.0,116630.0,0.07701479]
[1754768961442,0.84254714,116640.0,116630.0,0.07701479]
[1754768961857,0.84552714,116640.0,116630.0,0.07701479]
[1754768973384,0.84552714,116640.0,116630.0,0.07497479]
[1754768982219,0.84552714,116640.0,116630.0,0.07698479]
[1754768989279,0.84552714,116640.0,116630.0,0.07497479]
[1754769001722,0.84548714,116640.0,116630.0,0.07497479]
[1754769002085,0.86298714,116640.0,116630.0,0.07497479]
[1754769027151,0.86298714,116640.0,116630.0,0.07713479]
[1754769029127,0.72694714,116640.0,116630.0,0.07713479]
[1754769029542,0.72396714,116640.0,116630.0,0.08012479]
[1754769030291,0.72396714,116640.0,116630.0,0.07713479]
[1754769030683,0.72692714,116640.0,116630.0,0.07713479]
[1754769031413,0.86284714,116640.0,116630.0,0.07713479]
[1754769032285,0.85988714,116640.0,116630.0,0.07713479]
[1754769032683,0.86284714,116640.0,116630.0,0.07713479]
[1754769036431,0.86284714,116640.0,116630.0,0.07497479]
[1754769056779,0.86264714,116640.0,116630.0,0.07497479]
[1754769066826,0.84514714,116640.0,116630.0,0.07497479]
[1754769090256,0.70942714,116640.0,116630.0,0.07497479]
[1754769091749,0.70942714,116640.0,116630.0,0.07704479]
[1754769092164,0.84486714,116640.0,116630.0,0.07704479]
[1754769102634,0.84474714,116640.0,116630.0,0.07704479]
[1754769104006,0.76476114,116640.0,116630.0,0.07704479]
[1754769106274,0.67796689,116640.0,116630.0,0.07704479]
[1754769112035,0.67796689,116640.0,116630.0,0.05954479]
[1754769119445,0.67796689,116640.0,116630.0,0.05747479]
[1754769148253,0.67796689,116640.0,116630.0,0.05951479]
[1754769148461,0.67500689,116640.0,116630.0,0.05951479]
[1754769148665,0.76504114,116640.0,116630.0,0.05747479]
[1754769191512,0.76180114,116640.0,116630.0,0.05954479]
[1754769193602,0.76092114,116640.0,116630.0,0.05954479]
[1754769194028,0.76088114,116640.0,116630.0,0.05954479]
[1754769199204,0.76088114,116640.0,116630.0,0.06266479]
[1754769199993,0.76088114,116640.0,116630.0,0.05954479]
[1754769200826,0.76407114,116640.0,116630.0,0.05954479]
[1754769205453,0.62967114,116640.0,116630.0,0.05954479]
[1754769205685,0.76399114,116640.0,116630.0,0.05954479]
[1754769206379,0.76399114,116640.0,116630.0,0.05747479]
[1754769213379,0.62967114,116640.0,116630.0,0.05747479]
[1754769213588,0.76391114,116640.0,116630.0,0.05747479]
[1754769223627,0.76379114,116640.0,116630.0,0.05747479]
[1754769226367,0.76375114,116640.0,116630.0,0.05747479]
[1754769235478,0.76363114,116640.0,116630.0,0.05747479]
[1754769236460,0.01744902,116620.0,116610.0,1e-08]
[1754769236662,0.52896089,116610.0,116600.0,1e-08]
[1754769236882,0.78688642,116610.0,116600.0,1e-08]
[1754769237078,0.755123,116610.0,116600.0,1e-08]
[1754769237288,0.780883,116610.0,116600.0,1e-08]
[1754769237484,0.646923,116610.0,116600.0,1e-08]
[1754769237710,0.646923,116610.0,116600.0,0.00200001]
[1754769237711,0.73050725,116610.0,116600.0,0.00200001]
[1754769237907,0.86446725,116610.0,116600.0,0.00200001]
[1754769238111,0.86446725,116610.0,116600.0,0.00204733]
[1754769238312,0.86767725,116610.0,116600.0,4.733e-05]
[1754769238493,0.86767725,116610.0,116600.0,0.00204733]
[1754769238494,0.86446725,116610.0,116600.0,0.00204733]
[1754769240152,0.86446725,116610.0,116600.0,0.00511733]
[1754769240153,0.86233725,116610.0,116600.0,0.00511733]
[1754769240359,0.86446725,116610.0,116600.0,0.00511733]
[1754769240571,0.86446725,116610.0,116600.0,0.00204733]
[1754769241435,0.86233725,116610.0,116600.0,0.00511733]
[1754769242052,0.84484823,116610.0,116600.0,0.00511733]
[1754769242688,0.75805398,116610.0,116600.0,0.00511733]
[1754769243309,0.73229398,116610.0,116600.0,0.00811733]
[1754769243521,0.59837398,116610.0,116600.0,0.00811733]
[1754769243733,0.73229398,116610.0,116600.0,0.00711733]
[1754769244161,0.59837398,116610.0,116600.0,0.00911733]
[1754769244373,0.76551,116610.0,116600.0,0.00911733]
[1754769244588,0.76551,116610.0,116600.0,0.00711733]
[1754769244978,0.76551,116610.0,116600.0,0.01011733]
[1754769245823,0.73229398,116610.0,116600.0,0.01011733]
[1754769247875,0.59837398,116610.0,116600.0,0.01011733]
[1754769248086,0.73225398,116610.0,116600.0,0.01011733]
[1754769249784,0.59837398,116610.0,116600.0,0.01011733]
[1754769249967,0.73225398,116610.0,116600.0,0.01011733]
[1754769250111,0.81904823,116610.0,116600.0,0.01011733]
[1754769252085,0.68516823,116610.0,116600.0,0.01011733]
[1754769252311,0.81900823,116610.0,116600.0,0.01011733]
[1754769255792,0.82113823,116610.0,116600.0,0.00704733]
[1754769256293,0.73751398,116610.0,116600.0,0.00704733]
[1754769256506,0.73751398,116610.0,116600.0,0.00504733]
[1754769258819,0.73751398,116610.0,116600.0,0.00716733]
[1754769264881,0.73751398,116610.0,116600.0,0.00504733]
[1754769265318,0.60371398,116610.0,116600.0,0.00504733]
[1754769265516,0.8204189,116610.0,116600.0,0.00504733]
[1754769271089,0.8204189,116610.0,116600.0,0.00304733]
[1754769271299,0.8204189,116610.0,116600.0,0.00104733]
[1754769271535,0.8204189,116610.0,116600.0,0.00304733]
[1754769295115,0.8172089,116610.0,116600.0,0.00516733]
[1754769295538,0.8203389,116610.0,116600.0,0.00516733]
[1754769297300,0.73181398,116610.0,116600.0,0.00825733]
[1754769297531,0.59837398,116610.0,116600.0,0.00825733]
[1754769301458,0.73177398,116610.0,116600.0,0.00825733]
[1754769302124,0.73704398,116610.0,116600.0,0.00304733]
[1754769330722,0.73177398,116610.0,116600.0,0.00505733]
[1754769330925,0.81856823,116610.0,116600.0,0.00803733]
[1754769331363,0.82054823,116610.0,116600.0,0.00803733]
[1754769331561,0.82054823,116610.0,116600.0,0.00505733]
[1754769331770,0.82367823,116610.0,116600.0,0.00304733]
[1754769332431,0.18597925,116600.0,116590.0,0.029135]
[1754769332630,0.18597925,116600.0,116590.0,0.03119227]
[1754769333652,0.18597925,116600.0,116590.0,0.03619227]
[1754769333968,0.2727735,116600.0,116590.0,0.03619227]
[1754769339427,0.2747535,116600.0,116590.0,0.03619227]
[1754769339641,0.2747535,116600.0,116590.0,0.03321227]
[1754769342691,0.30667923,116600.0,116590.0,0.03321227]
[1754769343548,0.30980923,116600.0,116590.0,0.03120227]
[1754769347650,0.30980923,116600.0,116590.0,0.00544727]
[1754769350271,0.30980923,116600.0,116590.0,0.03120227]
[1754769352086,0.30980923,116600.0,116590.0,0.00544727]
[1754769361783,0.39667134,116600.0,116590.0,0.00544727]
[1754769385088,0.40540296,116600.0,116590.0,0.00544727]
[1754769396544,0.39095029,116600.0,116590.0,0.00544727]
[1754769412815,0.38221867,116600.0,116590.0,0.00544727]
[1754769418025,0.38221867,116600.0,116590.0,0.00742727]
[1754769421159,0.29542442,116600.0,116590.0,0.00742727]
[1754769421568,0.29031442,116600.0,116590.0,0.18218856]
[1754769423233,0.29031442,116600.0,116590.0,0.01064727]
[1754769431414,0.29247442,116600.0,116590.0,0.01064727]
[1754769432115,0.29247442,116600.0,116590.0,0.00742727]
[1754769432647,0.3243006,116600.0,116590.0,0.00742727]
[1754769433460,0.3274706,116600.0,116590.0,0.00742727]
[1754769434381,0.3274706,116600.0,116590.0,0.01064727]
[1754769434382,0.20345231,116600.0,116590.0,0.01064727]
[1754769434611,0.20345231,116600.0,116590.0,0.03640227]
[1754769436157,0.20561231,116600.0,116590.0,0.03640227]
[1754769437135,0.20561231,116600.0,116590.0,0.03318227]
[1754769438860,0.20874231,116600.0,116590.0,0.03318227]
[1754769441804,0.22624231,116600.0,116590.0,0.03318227]
[1754769459324,0.22095231,116600.0,116590.0,0.03613227]
[1754769459542,0.22095231,116600.0,116590.0,0.20767356]
[1754769459928,0.22308231,116600.0,116590.0,0.20767356]
[1754769460351,0.04942573,116600.0,116590.0,0.20767356]
[1754769460553,0.04942573,116600.0,116590.0,0.34007356]
[1754769460767,0.04942573,116600.0,116590.0,0.4481488]
[1754769460973,0.24861907,116600.0,116590.0,0.13927751]
[1754769461187,0.67548118,116600.0,116590.0,0.03120227]
[1754769461418,0.69882118,116600.0,116590.0,0.00544727]
[1754769461611,0.69882118,116600.0,116590.0,0.00244727]
[1754769461821,0.69882118,116600.0,116590.0,0.00544727]
[1754769462037,0.69882118,116600.0,116590.0,0.00944727]
[1754769462038,0.65407442,116600.0,116590.0,0.00944727]
[1754769462252,0.22408231,116600.0,116590.0,0.18527282]
[1754769462459,0.05255573,116600.0,116590.0,0.18607856]
[1754769462666,0.05155573,116600.0,116590.0,0.18207856]
[1754769462873,0.22308231,116600.0,116590.0,0.18407856]
[1754769463287,0.22308231,116600.0,116590.0,0.18207856]
[1754769463491,0.22308231,116600.0,116590.0,0.17912856]
[1754769463725,0.22408231,116600.0,116590.0,0.18212856]